fUST/lending_fUST_20251026
["ID","MTS","AMOUNT","RATE_DAILY","PERIOD"]
[392432854,1761465122414,-2139.2315587,0.00033723,90]
[392432855,1761465122423,-2000.0,0.00033723,30]
[392432856,1761465122433,-2000.0,0.00033723,30]
[392432857,1761465122442,-13118.25585487,0.00033723,120]
[392432858,1761465122451,-10000.0,0.00033723,30]
[392432859,1761465122460,-150.0,0.00033723,2]
[392432860,1761465122470,-92448.49733974,0.00033723,2]
[392432861,1761465122479,-22143.00018073,0.00033723,2]
[392432862,1761465122489,-165.72,0.00033723,30]
[392432863,1761465122498,-1895.00999983,0.00033723,120]
[392432864,1761465122507,-37271.58647978,0.00033723,120]
[392432865,1761465122517,-115396.82249766,0.00033723,20]
[392432866,1761465122526,-168291.67415353,0.00033723,60]
[392432867,1761465122535,-36865.12149313,0.00033723,2]
[392432868,1761465122544,-319.881459,0.00033723,120]
[392432869,1761465122554,-387.89578992,0.00033723,30]
[392432870,1761465122563,-2424.1726151,0.00033723,35]
[392432871,1761465122572,-1994.84911914,0.00033723,120]
[392432872,1761465122582,-284448.46863981,0.00033723,60]
[392432873,1761465122591,-8778.04278586,0.00033723,2]
[392432874,1761465122601,-211438.0,0.00033723,60]
[392432875,1761465122610,-351174.82885435,0.00033723,60]
[392432876,1761465122619,-1294.13093578,0.00033723,7]
[392432877,1761465122631,-3148.57764535,0.00033723,7]
[392432878,1761465122640,-11925.0,0.00033723,120]
[392432879,1761465122649,-30236.0,0.00033723,120]
[392432880,1761465122658,-211.69065251,0.00033723,60]
[392432881,1761465122667,-1117.399999,0.00033723,30]
[392432882,1761465122677,-192.470603,0.00033723,120]
[392432883,1761465122686,-1514.06,0.00033723,30]
[392432884,1761465122695,-50263.84173902,0.00033723,45]
[392432885,1761465122704,-3000.0,0.00033723,60]
[392432886,1761465122713,-2600.347081,0.00033723,120]
[392432887,1761465122723,-3814.44285644,0.00033723,30]
[392432888,1761465122732,-500.0,0.00033723,30]
[392432889,1761465122741,-500.0,0.00033723,30]
[392432890,1761465122750,-500.0,0.00033723,30]
[392432891,1761465122759,-500.0,0.00033723,30]
[392432892,1761465122768,-165132.17567283,0.00033723,20]
[392432893,1761465122778,-500.0,0.00033723,30]
[392432894,1761465122786,-502.76846529,0.00033723,30]
[392432895,1761465122795,-1285.799999,0.00033723,30]
[392432896,1761465122805,-1215.29077264,0.00033723,38]
[392432897,1761465122813,-400.12782979,0.00033723,3]
[392432898,1761465122823,-1000.0,0.00033723,30]
[392432899,1761465122833,-1000.0,0.00033723,30]
[392432900,1761465122844,-1000.0,0.00033723,30]
[392432901,1761465122853,-1000.0,0.00033723,30]
[392432902,1761465122865,-1000.0,0.00033723,30]
[392432903,1761465122875,-1514.072698,0.00033723,30]
[392432904,1761465122885,-250.0,0.00033723,10]
[392432905,1761465122896,-250.0,0.00033723,10]
[392432906,1761465122905,-250.0,0.00033723,10]
[392432907,1761465122914,-354.895474,0.00033723,10]
[392432908,1761465122924,-200.0,0.00033723,30]
[392432909,1761465122933,-865.03535634,0.000338,120]
[392432910,1761465122943,-1227.46,0.00033801,60]
[392432911,1761465122956,-1847.27965997,0.0003383,2]
[392432912,1761465122966,-1227.46,0.00033901,60]
[392432913,1761465122976,-277.87714675,0.00033972,30]
[392432914,1761465122985,-884.75322874,0.00033981,120]
[392432915,1761465122994,-2293.0,0.00034,7]
[392432916,1761465123004,-207.0,0.00034,120]
[392432917,1761465123014,-1461.24046431,0.00034,120]
[392432918,1761465123023,-219743.01660009,0.00034,5]
[392432919,1761465123032,-2000.0,0.00034,34]
[392432920,1761465123043,-835.07,0.00034,7]
[392432921,1761465123052,-174.65877931,0.00034,30]
[392432922,1761465123062,-1227.46,0.00034001,60]
[392432923,1761465123071,-2900.0,0.00034074,7]
[392432924,1761465123081,-1227.46,0.00034101,60]
[392432925,1761465123090,-200.0,0.00034152,120]
[392432926,1761465123100,-1227.46,0.00034201,60]
[392432927,1761465123109,-22928.63854651,0.0003427,30]
[392432928,1761465123118,-200.0,0.000343,3]
[392432929,1761465123128,-2802.0,0.000343,120]
[392432930,1761465123137,-1227.46,0.00034301,60]
[392432931,1761465123147,-1000.0,0.00034361,30]
[392432932,1761465123157,-1000.0,0.00034361,30]
[392432933,1761465123166,-579.0,0.00034361,30]
[392432934,1761465123176,-1227.46,0.00034401,60]
[392432935,1761465123186,-200.0,0.00034488,120]
[392432936,1761465123195,-1227.46,0.00034501,60]
[392432937,1761465123205,-1214.92,0.0003452,60]
[392432938,1761465123214,-1533.55747666,0.00034542,2]
[392432939,1761465123223,-1302.21,0.00034552,60]
[392432940,1761465123233,-1227.46,0.00034601,60]
[392432941,1761465123243,-1214.92,0.0003462,60]
[392432942,1761465123254,-1302.21,0.00034652,60]
[392432943,1761465123263,-714.08,0.00034665,2]
[392432944,1761465123274,-1227.78,0.00034701,60]
[392432945,1761465123283,-1215.19892041,0.0003472,60]
[392432946,1761465123292,-2180.6962155,0.00034723,15]
[392432947,1761465123301,-200.0,0.00034723,120]
[392432948,1761465123309,-12459.21720857,0.00034745,2]
[392432949,1761465123318,-1302.21,0.00034752,60]
[392432950,1761465123328,-1302.21,0.00034852,60]
[392432951,1761465123337,-2288.23007242,0.000349,2]
[392432952,1761465123346,-1302.21,0.00034952,60]
[392432953,1761465123355,-200.0,0.00034975,120]
[392432954,1761465123515,-655.92612142,0.00035,2]
[392432955,1761465123525,-4030.47744988,0.00035,2]
[392432956,1761465123534,-7681.7393793,0.00035,14]
[392432957,1761465123542,-10685.54817854,0.00035,2]
[392432958,1761465123552,-13072.02726257,0.00035,120]
[392432959,1761465123561,-700.0,0.00035,120]
[392432960,1761465123570,-1604.58567648,0.00035,120]
[392432961,1761465123579,-2023.9899468,0.00035,120]
[392432962,1761465123588,-155.80147505,0.00035,3]
[392432963,1761465123597,-160.0,0.00035,14]
[392432964,1761465123606,-158.0,0.00035,120]
[392432965,1761465123616,-259.48587693,0.00035,120]
[392432966,1761465123625,-35454.7681,0.00035,120]
[392432967,1761465123635,-451.91362104,0.00035,120]
[392432968,1761465123644,-1000.0,0.00035,2]
[392432969,1761465123654,-1000.0,0.00035,2]
[392432970,1761465123662,-1000.0,0.00035,2]
[392432971,1761465123672,-1000.0,0.00035,2]
[392432972,1761465123680,-999.95,0.00035,2]
[392432973,1761465123689,-1000.0,0.00035,2]
[392432974,1761465123698,-1000.0,0.00035,2]
[392432975,1761465123707,-1826.04040746,0.00035,7]
[392432976,1761465123716,-64736.07129498,0.00035,10]
[392432977,1761465123725,-10000.0,0.00035,60]
[392432978,1761465123734,-1302.21,0.00035052,60]
[392432979,1761465123743,-1302.21,0.00035152,60]
[392432980,1761465123752,-1302.21,0.00035252,60]
[392432981,1761465123761,-585.11,0.000353,2]
[392432982,1761465123770,-1000.0,0.000353,2]
[392432983,1761465123779,-1302.21,0.00035352,60]
[392432984,1761465123788,-200.0,0.00035409,120]
[392432985,1761465123798,-200.0,0.00035409,120]
[392432986,1761465123807,-200.0,0.00035409,120]
[392432987,1761465123817,-428096.2436,0.00035444,7]
[392432988,1761465123827,-854337.836,0.00035444,7]
[392432989,1761465123837,-1302.21,0.00035452,60]
[392432990,1761465123847,-10000.0,0.00035478,30]
[392432991,1761465123857,-117368.78239282,0.000355,60]
[392432992,1761465124026,-2446.65668567,0.000355,60]
[392432993,1761465124037,-2086.3943386,0.000355,60]
[392432994,1761465124804,-4677.4827983,0.00014765,2]
[392432998,1761465424041,936.092477,0.00013699,2]
[392433036,1761466232108,-196.0,0.0001515,2]
[392433038,1761466232117,-500.0,0.000152,2]
[392433040,1761466232127,-395.41695777,0.00015234,2]
[392433042,1761466232136,-196.0,0.00015334,2]
[392433044,1761466232145,-196.0,0.00015519,2]
[392433046,1761466232154,-196.0,0.00015703,2]
[392433048,1761466232164,-1200.0,0.00015766,2]
[392433050,1761466232173,-300.0,0.00015767,2]
[392433052,1761466232182,-300.0,0.00015767,2]
[392433054,1761466232192,-300.0,0.00015767,2]
[392433056,1761466232201,-300.0,0.00015767,2]
[392433058,1761466232211,-300.0,0.00015767,2]
[392433060,1761466232220,-300.0,0.00015767,2]
[392433062,1761466232230,-300.0,0.00015767,2]
[392433064,1761466232239,-300.0,0.00015767,2]
[392433066,1761466232248,-300.0,0.00015767,2]
[392433068,1761466232257,-300.0,0.00015767,2]
[392433070,1761466232266,-257.14375291,0.00015767,2]
[392433072,1761466232278,-42.85624709,0.00015767,2]
[392433074,1761466232287,-300.0,0.00015767,2]
[392433076,1761466232296,-300.0,0.00015767,2]
[392433078,1761466232305,-153.94380791,0.00015767,2]
[392433080,1761466232317,-146.05619209,0.00015767,2]
[392433082,1761466232326,-300.0,0.00015767,2]
[392433084,1761466232335,-196.0,0.00015888,2]
[392433086,1761466232346,-196.0,0.00016072,2]
[392433089,1761466232355,-160.0,0.00016075,2]
[392433090,1761466232364,-160.0,0.00016075,2]
[392433093,1761466232374,-600.0,0.00016118,2]
[392433095,1761466232383,-196.0,0.00016256,2]
[392433097,1761466232392,-554.62767123,0.00016296,2]
[392433099,1761466232401,-143.34241807,0.00016438,2]
[392433175,1761466238202,-356.65758193,0.00016438,2]
[392433176,1761466238213,-500.0,0.00016438,2]
[392433177,1761466238223,-236.40956384,0.00016438,2]
[392433178,1761466238234,-831.89074549,0.00016438,2]
[392433322,1761466852656,-196.0,0.000147,2]
[392433323,1761466856580,196.0,0.00014553,2]
[392433325,1761467268937,2186.0,0.000147,2]
[392433353,1761467432320,-1119.74825438,0.00014848,2]
[392433354,1761467432330,-1990.0,0.00014998,2]
[392433355,1761467432340,-196.0,0.0001515,2]
[392433356,1761467432350,-196.0,0.00015284,2]
[392433357,1761467432359,-196.0,0.00015418,2]
[392433358,1761467432368,-196.0,0.00015552,2]
[392433359,1761467432378,-196.0,0.00015686,2]
[392433360,1761467432387,-196.0,0.0001582,2]
[392433361,1761467432396,-196.0,0.00015955,2]
[392433362,1761467432406,-162.5,0.00016,2]
[392433363,1761467432415,-162.5,0.00016,2]
[392433364,1761467432424,-196.0,0.00016089,2]
[392433366,1761467432433,-300.0,0.00016131,2]
[392433368,1761467432442,-300.0,0.00016131,2]
[392433370,1761467432452,-1200.0,0.00016131,2]
[392433371,1761467432460,-300.0,0.00016131,2]
[392433372,1761467432469,-300.0,0.00016131,2]
[392433374,1761467432479,-2035.14234491,0.00016192,2]
[392433376,1761467432488,-196.0,0.00016223,2]
[392433378,1761467432497,-259.13719711,0.00016304,2]
[392433380,1761467432507,-196.0,0.00016357,2]
[392433382,1761467432520,-162.5,0.000164,2]
[392433384,1761467432529,-162.93843747,0.000164,2]
[392433386,1761467432539,-196.0,0.00016491,2]
[392433388,1761467432550,-600.0,0.000165,2]
[392433389,1761467432559,-196.0,0.00016625,2]
[392433391,1761467432569,-500.0,0.00016707,2]
[392433392,1761467432579,-500.0,0.00016707,2]
[392433393,1761467432589,-403.31732842,0.00016707,2]
[392433394,1761467432599,-500.0,0.00016707,2]
[392433395,1761467432608,-500.0,0.00016707,2]
[392433396,1761467432618,-500.0,0.00016707,2]
[392433397,1761467432627,-500.0,0.00016707,2]
[392433398,1761467432636,-500.0,0.00016707,2]
[392433399,1761467432645,-500.0,0.00016707,2]
[392433400,1761467432655,-500.0,0.00016707,2]
[392433401,1761467432664,-500.0,0.00016707,2]
[392433402,1761467432673,-500.0,0.00016707,2]
[392433403,1761467432682,-500.0,0.00016707,2]
[392433404,1761467432691,-500.0,0.00016707,2]
[392433405,1761467432701,-500.0,0.00016707,2]
[392433406,1761467432710,-183.60626114,0.00016707,2]
[392433407,1761467432721,-500.0,0.00016707,2]
[392433408,1761467432730,-500.0,0.00016707,2]
[392433409,1761467432739,-500.0,0.0001671,2]
[392433410,1761467432750,-500.0,0.00016711,2]
[392433411,1761467432759,-500.0,0.00016711,2]
[392433412,1761467432769,-500.0,0.00016711,2]
[392433413,1761467432780,-196.0,0.00016759,2]
[392433414,1761467432790,-500.0,0.00016856,2]
[392433415,1761467432800,-393.26890446,0.00016856,2]
[392433416,1761467432809,-500.0,0.00016856,2]
[392433417,1761467432819,-508.97877541,0.00016856,2]
[392433418,1761467432828,-500.0,0.00016856,2]
[392433419,1761467432840,-662.65453771,0.00016885,2]
[392433420,1761467432849,-196.0,0.00016893,2]
[392433421,1761467432858,-160.0,0.00016977,2]
[392433422,1761467432867,-160.0,0.00016977,2]
[392433423,1761467432876,-403.49456409,0.00016977,2]
[392433424,1761467432885,-160.0,0.00016977,2]
[392433425,1761467432894,-500.0,0.00016984,2]
[392433426,1761467432904,-500.0,0.00016985,2]
[392433427,1761467432913,-500.0,0.00016985,2]
[392433428,1761467432922,-500.0,0.00016985,2]
[392433429,1761467432931,-196.0,0.00017027,2]
[392433430,1761467432940,-196.0,0.00017161,2]
[392433431,1761467432949,-500.0,0.00017258,2]
[392433432,1761467432958,-366.5275793,0.00017259,2]
[392433433,1761467432967,-500.0,0.00017259,2]
[392433434,1761467432976,-500.0,0.00017259,2]
[392433435,1761467432985,-196.0,0.00017295,2]
[392433436,1761467432995,-456.0930277,0.00017404,2]
[392433437,1761467433004,-1000.0,0.00017404,2]
[392433438,1761467433013,-291.6481264,0.00017404,2]
[392433439,1761467433023,-196.0,0.0001743,2]
[392433440,1761467433032,-353.38326502,0.00017532,2]
[392433441,1761467433041,-500.0,0.00017533,2]
[392433442,1761467433050,-500.0,0.00017533,2]
[392433443,1761467433059,-196.0,0.00017564,2]
[392433444,1761467433069,-196.0,0.00017698,2]
[392433445,1761467433079,-1680.0,0.00017723,2]
[392433446,1761467433088,-500.0,0.00017807,2]
[392433447,1761467433097,-500.0,0.00017807,2]
[392433448,1761467433106,-196.0,0.00017832,2]
[392433449,1761467433116,-1053.36203907,0.00017951,2]
[392433450,1761467433125,-196.0,0.00017966,2]
[392433451,1761467433134,-34345.05515565,0.00017973,2]
[392433677,1761467440403,-411.0,0.00017416,2]
[392433679,1761467440413,-434.279,0.00017416,2]
[392433681,1761467440422,-61821.69229659,0.00017973,2]
[392433691,1761467440513,-9859.99999999,0.00017973,2]
[392433704,1761467662448,161.013765,0.00013699,2]
[392433715,1761468272282,889.287853,0.00013699,2]
[392433736,1761468632496,-196.0,0.0001515,2]
[392433738,1761468632505,-196.0,0.00015396,2]
[392433740,1761468632514,-196.0,0.00015642,2]
[392433742,1761468632523,-196.0,0.00015888,2]
[392433744,1761468632532,-128.404044,0.00016133,2]
[392433752,1761468632600,-67.595956,0.00016133,2]
[392433754,1761468632609,-196.0,0.00016379,2]
[392433756,1761468632618,-196.0,0.00016625,2]
[392433758,1761468632627,-20.55700033,0.00016863,2]
[392433798,1761468638330,-647.09128907,0.00016863,2]
[392433800,1761468638339,-196.0,0.00016871,2]
[392433802,1761468638348,-403.49456409,0.00016977,2]
[392433804,1761468638357,-196.0,0.00017117,2]
[392433806,1761468638367,-196.0,0.00017363,2]
[392433808,1761468638377,-196.0,0.00017608,2]
[392433810,1761468638386,-411.0,0.00017726,2]
[392433812,1761468638396,-1903.99748717,0.00017769,2]
[392433813,1761468638407,-131.14485774,0.00017769,2]
[392433815,1761468638418,-618.85514226,0.00017773,2]
[392433817,1761468638430,-217.31856727,0.00017773,2]
[392433818,1761468638440,-1200.0,0.0001785,2]
[392433819,1761468638450,-1230.9363306,0.00017851,2]
[392433820,1761468638460,-2247.0943788,0.00017851,2]
[392433821,1761468638470,-196.0,0.00017854,2]
[392433822,1761468638479,-500.0,0.00017873,2]
[392433823,1761468638489,-257317.40567684,0.00017873,2]
[392433824,1761468638501,-31737.76868509,0.00017873,2]
[392433832,1761468640638,-80944.82563807,0.00017873,2]
[392433833,1761468640647,-5536.15344304,0.00018,2]
[392433834,1761468640690,-635.0,0.00018,2]
[392433835,1761468640701,-1929.26402892,0.00018,2]
[392433840,1761468643850,-1004.07124964,0.00018,2]
[392433897,1761468646484,-11130.9297471,0.00018,2]
[392433956,1761469212380,163.0,8.3e-07,2]
[392433957,1761469286218,3000.0,0.00030137,120]
[392433997,1761469832668,-196.0,0.0001515,2]
[392433999,1761469832677,-196.0,0.00015478,2]
[392434001,1761469832686,-196.0,0.00015806,2]
[392434003,1761469832695,-196.0,0.00016133,2]
[392434005,1761469832705,-216.0,0.00016255,2]
[392434008,1761469832720,-195.0,0.00016255,2]
[392434010,1761469832729,-196.0,0.00016461,2]
[392434012,1761469832738,-196.0,0.00016789,2]
[392434014,1761469832748,-185.9696589,0.00016977,2]
[392434016,1761469832759,-217.52490519,0.00016977,2]
[392434018,1761469832769,-196.0,0.00017117,2]
[392434020,1761469832778,-196.0,0.00017444,2]
[392434022,1761469832788,-676.81005116,0.00017611,2]
[392434024,1761469832797,-300.0,0.00017697,2]
[392434026,1761469832806,-1200.0,0.00017697,2]
[392434028,1761469832815,-52793.66504365,0.00017698,2]
[392434065,1761469838536,-20973.93212731,0.00017698,2]
[392434066,1761469838547,-2035.14234491,0.00017766,2]
[392434067,1761469838556,-196.0,0.00017772,2]
[392434068,1761469838566,-500.0,0.00017773,2]
[392434069,1761469838576,-500.0,0.00017773,2]
[392434070,1761469838586,-500.0,0.00017773,2]
[392434071,1761469838596,-500.0,0.00017773,2]
[392434072,1761469838606,-343.65457988,0.00017773,2]
[392434073,1761469838615,-500.0,0.00017773,2]
[392434074,1761469838625,-500.0,0.00017773,2]
[392434075,1761469838634,-500.0,0.00017773,2]
[392434076,1761469838643,-14356.82512722,0.00017773,2]
[392434087,1761469840801,-1966.5,0.00017773,2]
[392434090,1761469843801,-10599.63714548,0.00017773,2]
[392434091,1761469843812,-264.65470818,0.00017773,2]
[392434099,1761469846843,-2189.9047516,0.00017773,2]
[392434100,1761469846855,-5871.76138201,0.00017773,2]
[392434107,1761469910569,469.76,0.00030137,120]
[392434108,1761470073398,6012.708382,0.000147,2]
[392434109,1761470073420,3987.291618,0.000147,2]
[392434110,1761470081514,6012.718382,0.000147,2]
[392434111,1761470081535,3987.281618,0.000147,2]
[392434112,1761470092910,6012.728382,0.000147,2]
[392434113,1761470092933,3987.271618,0.000147,2]
[392434114,1761470114234,1083.957,0.00030137,120]
[392434135,1761470889872,421.19423323,0.00010618,2]
[392434136,1761470891789,5591.54414877,0.000125,2]
[392434137,1761470891811,5957.48553543,0.000125,2]
[392434164,1761471036262,-573.97863795,0.0001505,2]
[392434171,1761471036317,-1259.7661281,0.0001505,2]
[392434178,1761471036373,-195.55335898,0.0001505,2]
[392434180,1761471036383,-196.0,0.0001515,2]
[392434182,1761471036392,-196.0,0.00015519,2]
[392434184,1761471036403,-196.0,0.00015888,2]
[392434187,1761471036413,-146.96652006,0.00016256,2]
[392434249,1761471037763,-49.03347994,0.00016256,2]
[392434251,1761471037774,-196.0,0.00016625,2]
[392434253,1761471037787,-342.18516783,0.00016931,2]
[392434254,1761471037818,-250.0236269,0.00016931,2]
[392434255,1761471037829,-403.49456409,0.00016977,2]
[392434256,1761471037840,-196.0,0.00016994,2]
[392434257,1761471037854,-300.0,0.00016999,2]
[392434258,1761471037864,-300.0,0.00016999,2]
[392434259,1761471037875,-915.25281652,0.00016999,2]
[392434260,1761471037894,-284.74718348,0.00016999,2]
[392434261,1761471037904,-300.0,0.00016999,2]
[392434262,1761471037915,-300.0,0.00016999,2]
[392434263,1761471037925,-201.38680881,0.00016999,2]
[392434264,1761471037935,-500.0,0.00016999,2]
[392434266,1761471037946,-500.0,0.00016999,2]
[392434267,1761471037956,-500.0,0.00016999,2]
[392434269,1761471037966,-36.13991419,0.00016999,2]
[392434306,1761471040010,-463.86008581,0.00016999,2]
[392434308,1761471040021,-500.0,0.00016999,2]
[392434310,1761471040032,-500.0,0.00016999,2]
[392434312,1761471040042,-500.0,0.00016999,2]
[392434314,1761471040053,-500.0,0.00016999,2]
[392434316,1761471040063,-500.0,0.00016999,2]
[392434319,1761471040073,-500.0,0.00016999,2]
[392434321,1761471040084,-500.0,0.00016999,2]
[392434323,1761471040094,-563.3,0.00016999,2]
[392434325,1761471040106,-500.0,0.00016999,2]
[392434327,1761471040116,-500.0,0.00016999,2]
[392434329,1761471040125,-624.79041368,0.00016999,2]
[392434331,1761471040134,-500.0,0.00016999,2]
[392434333,1761471040144,-401.20669023,0.00016999,2]
[392434335,1761471040153,-500.0,0.00016999,2]
[392434337,1761471040162,-418.95724527,0.00016999,2]
[392434339,1761471040172,-500.0,0.00016999,2]
[392434341,1761471040182,-500.0,0.00016999,2]
[392434343,1761471040192,-556.04732638,0.00016999,2]
[392434345,1761471040202,-500.0,0.00016999,2]
[392434347,1761471040211,-301.02849417,0.00016999,2]
[392434349,1761471040221,-27194.62096101,0.00017,2]
[392434352,1761471040232,-37439.64179651,0.00017,2]
[392434354,1761471040241,-1200.0,0.00017029,2]
[392434356,1761471040251,-2035.14234491,0.00017274,2]
[392434358,1761471040260,-196.0,0.00017363,2]
[392434360,1761471040270,-668.9389676,0.00017539,2]
[392434362,1761471040280,-151.0,0.00017588,2]
[392434364,1761471040290,-36490.22145892,0.00017598,2]
[392434544,1761471043144,-184136.62713266,0.00017598,2]
[392434545,1761471043156,-62174.429175,0.00017598,2]
[392434546,1761471043359,-87198.72223342,0.00017598,2]
[392434548,1761471043369,-51013.2452211,0.00017631,2]
[392434550,1761471043379,-196.0,0.00017731,2]
[392434551,1761471043389,-1685.3207841,0.00017837,2]
[392434553,1761471043399,-287.67951678,0.000181,2]
[392434554,1761471043409,-600.0,0.00018419,2]
[392434556,1761471043419,-300.0,0.00018567,2]
[392434557,1761471043429,-1680.0,0.00018659,2]
[392434558,1761471043438,-500.0,0.00018893,2]
[392434559,1761471043448,-500.0,0.00018893,2]
[392434560,1761471043458,-151.0,0.00019178,2]
[392434561,1761471043468,-151.0,0.00019178,2]
[392434562,1761471043636,-1745.456959,0.00019178,2]
[392434563,1761471043647,-154.992676,0.00019178,2]
[392434564,1761471043657,-1745.456959,0.00019178,2]
[392434565,1761471043666,-1745.456959,0.00019178,2]
[392434566,1761471043676,-1745.456959,0.00019178,2]
[392434567,1761471043686,-151.0,0.00019178,2]
[392434568,1761471043700,-190.949813,0.00019178,2]
[392434569,1761471043710,-592.20879473,0.00019268,2]
[392434570,1761471043719,-668.9389676,0.00019354,2]
[392434571,1761471043728,-168.0,0.00019358,2]
[392434572,1761471043739,-504.65022978,0.00019441,2]
[392434573,1761471043748,-168.0,0.0001978,2]
[392434574,1761471043758,-168.0,0.00019933,2]
[392434575,1761471043768,-2067.24,0.0001999,2]
[392434576,1761471043777,-889.287853,0.00020187,2]
[392434577,1761471043786,-720.0,0.00020261,2]
[392434578,1761471043796,-1685.3207841,0.00020448,2]
[392434579,1761471043805,-1892.0,0.00020481,2]
[392434580,1761471043814,-161.013765,0.00020548,2]
[392434581,1761471043824,-168.0,0.00020885,2]
[392434582,1761471043833,-168.0,0.00020978,2]
[392434583,1761471043843,-4140.636473,0.00021,2]
[392434584,1761471043852,-1745.456959,0.00021,7]
[392434585,1761471043862,-1745.456959,0.00021,7]
[392434586,1761471043872,-1745.456959,0.00021,7]
[392434587,1761471043882,-1745.456959,0.00021,7]
[392434588,1761471043891,-168.0,0.00021029,2]
[392434589,1761471043900,-168.0,0.00021117,2]
[392434590,1761471043910,-168.0,0.0002112,2]
[392434591,1761471043919,-151.0,0.00021144,7]
[392434592,1761471043929,-668.9389676,0.0002117,2]
[392434593,1761471043938,-1000.0,0.00021401,2]
[392434594,1761471043948,-206.33422799,0.00021401,2]
[392434595,1761471043957,-154.92935996,0.00021401,2]
[392434596,1761471043966,-220.505991,0.00021401,2]
[392434597,1761471043976,-500.0,0.00021401,2]
[392434598,1761471043986,-250.0,0.00021401,2]
[392434599,1761471043995,-250.0,0.00021401,2]
[392434600,1761471044004,-151.0,0.00021401,2]
[392434601,1761471044013,-592.20879473,0.00021605,2]
[392434602,1761471044022,-168.0,0.00021624,2]
[392434603,1761471044031,-168.0,0.00021892,2]
[392434604,1761471044040,-213.96859442,0.00021949,2]
[392434605,1761471044049,-168.0,0.00021981,2]
[392434606,1761471044059,-7421.85,0.00022,7]
[392434607,1761471044068,-168.0,0.00022168,2]
[392434608,1761471044077,-168.0,0.00022211,2]
[392434609,1761471044086,-168.0,0.00022232,2]
[392434610,1761471044095,-864.0,0.00022287,20]
[392434611,1761471044104,-168.0,0.00022477,2]
[392434612,1761471044114,-668.9389676,0.00022985,2]
[392434613,1761471044123,-1685.3207841,0.00023059,2]
[392434614,1761471044132,-13918.7053079,0.00023288,30]
[392434615,1761471044141,-403.49456409,0.00023288,30]
[392434616,1761471044151,-151.0,0.00023288,7]
[392434617,1761471044160,-1745.456959,0.00023288,7]
[392434618,1761471044169,-1745.456959,0.00023288,7]
[392434619,1761471044179,-1745.456959,0.00023288,7]
[392434620,1761471044188,-1745.456959,0.00023288,7]
[392434621,1761471044197,-592.20879473,0.00023942,2]
[392434622,1761471044206,-500.0,0.00024256,2]
[392434623,1761471044216,-1000.0,0.00024516,20]
[392434624,1761471044225,-380.0,0.00024658,2]
[392434625,1761471044234,-200.0,0.00024658,15]
[392434626,1761471044244,-668.9389676,0.000248,2]
[392434627,1761471044253,-198420.150244,0.000248,2]
[392434628,1761471044263,-1745.456959,0.000248,7]
[392434629,1761471044272,-1745.456959,0.000248,7]
[392434630,1761471044282,-1745.456959,0.000248,7]
[392434631,1761471044291,-1745.456959,0.000248,7]
[392434632,1761471044300,-205.82772606,0.00024804,2]
[392434633,1761471044309,-77420.11959443,0.0002489,2]
[392434640,1761471046173,-1390.88633907,0.00018,2]
[392434644,1761471107292,800.359067,0.00013699,2]
[392434645,1761471233903,5000.0,0.00020104,17]
[392434657,1761471295091,2454.0,0.0001912,9]
[392434658,1761471315936,10000.0,0.0001912,9]
[392434665,1761471449520,161.013765,0.00013699,2]
[392434666,1761471467519,196.0,0.000147,2]
[392434679,1761472011900,-500.0,0.0003337,60]